[Event "Titled Tuesday Blitz July 25 Late 2023"]
[White "Gasparyan, David"]
[Black "Riehle, Marco"]
[WhiteFideId "13311980"]
[BlackFideId "12904392"]
[WhiteElo "2510"]
[BlackElo "2788"]
[Result "0-1"]
[Round "2"]
[TimeControl "180+2"]
[Date "2023.07.25"]
[WhiteClock "0:00:02"]
[BlackClock "0:01:01"]
[Board "55"]

1. Nf3 {[%clk 0:03:00]}  c5 {[%clk 0:02:59]} 2. c4 {[%clk 0:03:00]}  Nf6 {[%clk 0:02:59]} 3. Nc3 {[%clk 0:03:00]}  d5 {[%clk 0:02:59]} 4. cxd5 {[%clk 0:02:59]}  Nxd5 {[%clk 0:03:00]} 5. g3 {[%clk 0:02:57]}  Nc6 {[%clk 0:02:59]} 6. Bg2 {[%clk 0:02:57]}  Nc7 {[%clk 0:02:59]} 7. O-O {[%clk 0:02:57]}  e5 {[%clk 0:02:59]} 8. d3 {[%clk 0:02:57]}  Be7 {[%clk 0:02:55]} 9. Be3 {[%clk 0:02:49]}  Be6 {[%clk 0:02:54]} 10. Rc1 {[%clk 0:02:49]}  f6 {[%clk 0:02:46]} 11. Ne4 {[%clk 0:02:44]}  b6 {[%clk 0:02:44]} 12. a3 {[%clk 0:02:41]}  Qd7 {[%clk 0:02:43]} 13. Qc2 {[%clk 0:02:31]}  Nb5 {[%clk 0:02:22]} 14. Qa4 {[%clk 0:02:09]}  Nbd4 {[%clk 0:02:20]} 15. Bxd4 {[%clk 0:02:07]}  Nxd4 {[%clk 0:02:19]} 16. Qxd7+ {[%clk 0:02:07]}  Kxd7 {[%clk 0:02:20]} 17. Nxd4 {[%clk 0:02:07]}  cxd4 {[%clk 0:02:21]} 18. Nd2 {[%clk 0:02:00]}  Rac8 {[%clk 0:02:20]} 19. Bb7 {[%clk 0:01:34]}  Rc7 {[%clk 0:02:03]} 20. Rxc7+ {[%clk 0:01:33]}  Kxc7 {[%clk 0:02:03]} 21. Bg2 {[%clk 0:01:34]}  Rc8 {[%clk 0:02:01]} 22. Rc1+ {[%clk 0:01:30]}  Kd7 {[%clk 0:02:00]} 23. Rxc8 {[%clk 0:01:31]}  Kxc8 {[%clk 0:02:01]} 24. Kf1 {[%clk 0:01:20]}  Kc7 {[%clk 0:01:59]} 25. Ke1 {[%clk 0:01:20]}  b5 {[%clk 0:01:54]} 26. Kd1 {[%clk 0:01:15]}  a5 {[%clk 0:01:50]} 27. Kc2 {[%clk 0:01:14]}  a4 {[%clk 0:01:47]} 28. Bf3 {[%clk 0:01:10]}  Kb6 {[%clk 0:01:46]} 29. Bg2 {[%clk 0:01:10]}  b4 {[%clk 0:01:44]} 30. axb4 {[%clk 0:01:09]}  Bxb4 {[%clk 0:01:45]} 31. Bf3 {[%clk 0:00:59]}  Kb5 {[%clk 0:01:31]} 32. Bg2 {[%clk 0:00:57]}  Bxd2 {[%clk 0:01:28]} 33. Kxd2 {[%clk 0:00:57]}  Kb4 {[%clk 0:01:28]} 34. Kc2 {[%clk 0:00:56]}  Bg4 {[%clk 0:01:28]} 35. f3 {[%clk 0:00:50]}  Be6 {[%clk 0:01:26]} 36. h4 {[%clk 0:00:38]}  f5 {[%clk 0:01:24]} 37. Bh3 {[%clk 0:00:37]}  Bb3+ {[%clk 0:01:23]} 38. Kd2 {[%clk 0:00:35]}  f4 {[%clk 0:01:24]} 39. gxf4 {[%clk 0:00:34]}  exf4 {[%clk 0:01:25]} 40. Bf5 {[%clk 0:00:34]}  h6 {[%clk 0:01:24]} 41. Bd7 {[%clk 0:00:32]}  Kc5 {[%clk 0:01:11]} 42. Ke1 {[%clk 0:00:31]}  Kd6 {[%clk 0:01:11]} 43. Be8 {[%clk 0:00:30]}  Ke7 {[%clk 0:01:11]} 44. Bh5 {[%clk 0:00:24]}  Kf6 {[%clk 0:01:11]} 45. Bg4 {[%clk 0:00:23]}  g6 {[%clk 0:01:05]} 46. Kf2 {[%clk 0:00:21]}  h5 {[%clk 0:01:05]} 47. Bd7 {[%clk 0:00:19]}  g5 {[%clk 0:01:06]} 48. hxg5+ {[%clk 0:00:18]}  Kxg5 {[%clk 0:01:07]} 49. Kg2 {[%clk 0:00:18]}  h4 {[%clk 0:01:06]} 50. Kf2 {[%clk 0:00:17]}  Kf6 {[%clk 0:01:05]} 51. Ke1 {[%clk 0:00:17]}  Ke5 {[%clk 0:01:02]} 52. Kd2 {[%clk 0:00:17]}  Be6 {[%clk 0:01:00]} 53. Bxe6 {[%clk 0:00:11]}  Kxe6 {[%clk 0:01:01]} 54. Ke1 {[%clk 0:00:11]}  Kd5 {[%clk 0:01:01]} 55. e4+ {[%clk 0:00:04]}  dxe3 {[%clk 0:01:00]} 56. Kd1 {[%clk 0:00:03]}  Kd4 {[%clk 0:00:59]} 57. Ke2 {[%clk 0:00:03]}  h3 {[%clk 0:01:00]} 58. b3 {[%clk 0:00:02]}  axb3 {[%clk 0:01:00]} 59. Ke1 {[%clk 0:00:02]}  b2 {[%clk 0:01:00]} 60. Ke2 {[%clk 0:00:02]}  h2 {[%clk 0:01:01]} 61. Kd1 {[%clk 0:00:01]}  b1=Q+ {[%clk 0:01:00]} 62. Ke2 {[%clk 0:00:02]}  Qxd3+ {[%clk 0:01:00]} 63. Ke1 {[%clk 0:00:02]}  h1=Q# {[%clk 0:01:01]} 0-1


[Site "https://www.chess.com"]

[Event "Titled Tuesday Blitz July 25 Late 2023"]
[White "Pakleza, Zbigniew"]
[Black "Cnejev, Vladimir-Alexandru"]
[WhiteFideId "1119290"]
[BlackFideId "1260898"]
[WhiteElo "2785"]
[BlackElo "2509"]
[Result "0-1"]
[Round "2"]
[TimeControl "180+2"]
[Date "2023.07.25"]
[WhiteClock "0:00:01"]
[BlackClock "0:00:07"]
[Board "57"]

1. d4 {[%clk 0:03:00]}  d5 {[%clk 0:02:51]} 2. Bf4 {[%clk 0:03:00]}  Nf6 {[%clk 0:02:50]} 3. e3 {[%clk 0:03:01]}  e6 {[%clk 0:02:49]} 4. Nd2 {[%clk 0:03:01]}  c5 {[%clk 0:02:48]} 5. c3 {[%clk 0:03:00]}  Bd6 {[%clk 0:02:48]} 6. Bg3 {[%clk 0:03:00]}  Qc7 {[%clk 0:02:46]} 7. Ngf3 {[%clk 0:02:59]}  Nbd7 {[%clk 0:02:45]} 8. c4 {[%clk 0:02:51]}  b6 {[%clk 0:02:25]} 9. Rc1 {[%clk 0:02:50]}  Bxg3 {[%clk 0:01:58]} 10. hxg3 {[%clk 0:02:51]}  dxc4 {[%clk 0:01:44]} 11. Bxc4 {[%clk 0:02:39]}  Bb7 {[%clk 0:01:41]} 12. dxc5 {[%clk 0:02:34]}  bxc5 {[%clk 0:01:41]} 13. O-O {[%clk 0:02:30]}  O-O {[%clk 0:01:41]} 14. Qa4 {[%clk 0:02:30]}  Nb6 {[%clk 0:01:40]} 15. Qa5 {[%clk 0:02:25]}  Rfd8 {[%clk 0:01:33]} 16. Rfd1 {[%clk 0:02:15]}  Ne4 {[%clk 0:01:25]} 17. Be2 {[%clk 0:01:56]}  Nxd2 {[%clk 0:01:20]} 18. Nxd2 {[%clk 0:01:57]}  Rac8 {[%clk 0:01:19]} 19. Bf3 {[%clk 0:01:49]}  Bxf3 {[%clk 0:01:09]} 20. gxf3 {[%clk 0:01:47]}  c4 {[%clk 0:00:59]} 21. Kg2 {[%clk 0:01:35]}  g6 {[%clk 0:00:59]} 22. g4 {[%clk 0:01:30]}  Rd3 {[%clk 0:00:55]} 23. Ne4 {[%clk 0:01:21]}  Rcd8 {[%clk 0:00:47]} 24. Rxd3 {[%clk 0:01:16]}  Rxd3 {[%clk 0:00:48]} 25. g5 {[%clk 0:01:13]}  Kg7 {[%clk 0:00:25]} 26. Nf6 {[%clk 0:01:04]}  Qb8 {[%clk 0:00:14]} 27. f4 {[%clk 0:00:20]}  Nd5 {[%clk 0:00:11]} 28. Nxd5 {[%clk 0:00:12]}  exd5 {[%clk 0:00:12]} 29. b3 {[%clk 0:00:02]}  cxb3 {[%clk 0:00:11]} 30. axb3 {[%clk 0:00:03]}  Qd6 {[%clk 0:00:07]} 31. Qxa7 {[%clk 0:00:03]}  d4 {[%clk 0:00:07]} 32. Qb7 {[%clk 0:00:02]}  dxe3 {[%clk 0:00:06]} 33. fxe3 {[%clk 0:00:02]}  Rxe3 {[%clk 0:00:07]} 34. Rc2 {[%clk 0:00:03]}  Qxf4 {[%clk 0:00:07]} 35. Qc6 {[%clk 0:00:02]}  Qg3+ {[%clk 0:00:07]} 36. Kf1 {[%clk 0:00:01]}  Re1# {[%clk 0:00:07]} 0-1


[Site "https://www.chess.com"]

[Event "Titled Tuesday Blitz July 25 Late 2023"]
[White "only_strong_moves"]
[Black "Oro, Faustino"]
[BlackFideId "20000197"]
[WhiteElo "2508"]
[BlackElo "2784"]
[Result "0-1"]
[Round "2"]
[TimeControl "180+2"]
[Date "2023.07.25"]
[WhiteClock "0:00:10"]
[BlackClock "0:00:26"]
[Board "58"]

1. d4 {[%clk 0:03:00]}  Nf6 {[%clk 0:02:59]} 2. c4 {[%clk 0:03:01]}  e6 {[%clk 0:02:58]} 3. Nf3 {[%clk 0:03:01]}  d5 {[%clk 0:02:58]} 4. Nc3 {[%clk 0:03:02]}  Bb4 {[%clk 0:02:57]} 5. cxd5 {[%clk 0:03:02]}  exd5 {[%clk 0:02:56]} 6. Bg5 {[%clk 0:03:02]}  O-O {[%clk 0:02:56]} 7. e3 {[%clk 0:03:02]}  h6 {[%clk 0:02:54]} 8. Bh4 {[%clk 0:03:02]}  c6 {[%clk 0:02:54]} 9. Qb3 {[%clk 0:03:00]}  a5 {[%clk 0:02:52]} 10. Be2 {[%clk 0:02:58]}  Nbd7 {[%clk 0:02:41]} 11. O-O {[%clk 0:02:57]}  Re8 {[%clk 0:02:41]} 12. a3 {[%clk 0:02:56]}  Bd6 {[%clk 0:02:39]} 13. Bg3 {[%clk 0:02:26]}  Bxg3 {[%clk 0:02:36]} 14. hxg3 {[%clk 0:02:27]}  g6 {[%clk 0:02:29]} 15. Rad1 {[%clk 0:02:20]}  h5 {[%clk 0:02:28]} 16. Bd3 {[%clk 0:01:56]}  Kg7 {[%clk 0:02:23]} 17. Rfe1 {[%clk 0:01:56]}  Nf8 {[%clk 0:02:22]} 18. e4 {[%clk 0:01:54]}  dxe4 {[%clk 0:02:19]} 19. Nxe4 {[%clk 0:01:55]}  Nd5 {[%clk 0:02:13]} 20. Ne5 {[%clk 0:01:36]}  Ne6 {[%clk 0:02:06]} 21. Bc4 {[%clk 0:01:16]}  Nxd4 {[%clk 0:01:50]} 22. Rxd4 {[%clk 0:01:17]}  Rxe5 {[%clk 0:01:49]} 23. f4 {[%clk 0:01:17]}  Rf5 {[%clk 0:01:38]} 24. Red1 {[%clk 0:01:14]}  Be6 {[%clk 0:01:38]} 25. Nc5 {[%clk 0:01:08]}  b5 {[%clk 0:01:20]} 26. Bd3 {[%clk 0:00:59]}  Rf6 {[%clk 0:01:18]} 27. Be4 {[%clk 0:00:48]}  Qb6 {[%clk 0:01:09]} 28. Qc2 {[%clk 0:00:48]}  Ne3 {[%clk 0:00:56]} 29. Qf2 {[%clk 0:00:48]}  Nxd1 {[%clk 0:00:53]} 30. Rxd1 {[%clk 0:00:49]}  Qc7 {[%clk 0:00:46]} 31. Qd4 {[%clk 0:00:44]}  Re8 {[%clk 0:00:44]} 32. Bf3 {[%clk 0:00:38]}  Bd5 {[%clk 0:00:38]} 33. Bxd5 {[%clk 0:00:32]}  cxd5 {[%clk 0:00:39]} 34. Qxd5 {[%clk 0:00:33]}  Qe7 {[%clk 0:00:37]} 35. Nd3 {[%clk 0:00:19]}  Qe3+ {[%clk 0:00:32]} 36. Kh2 {[%clk 0:00:18]}  h4 {[%clk 0:00:32]} 37. g4 {[%clk 0:00:15]}  Qg3+ {[%clk 0:00:31]} 38. Kh1 {[%clk 0:00:14]}  h3 {[%clk 0:00:30]} 39. gxh3 {[%clk 0:00:13]}  Rh8 {[%clk 0:00:26]} 40. Qg2 {[%clk 0:00:12]}  Rxh3+ {[%clk 0:00:25]} 41. Kg1 {[%clk 0:00:13]}  Qe3+ {[%clk 0:00:26]} 42. Nf2 {[%clk 0:00:10]}  Rg3 {[%clk 0:00:26]} 0-1


[Site "https://www.chess.com"]

[Event "Titled Tuesday Blitz July 25 Late 2023"]
[White "Basso, Pier Luigi"]
[Black "Urbina Perez, Juan Antonio"]
[WhiteFideId "866970"]
[BlackFideId "2217368"]
[WhiteElo "2784"]
[BlackElo "2467"]
[Result "1-0"]
[Round "2"]
[TimeControl "180+2"]
[Date "2023.07.25"]
[WhiteClock "0:01:52"]
[BlackClock "0:00:56"]
[Board "59"]

1. e4 {[%clk 0:03:00]}  c5 {[%clk 0:02:58]} 2. Nf3 {[%clk 0:03:00]}  d6 {[%clk 0:02:58]} 3. d4 {[%clk 0:03:00]}  cxd4 {[%clk 0:02:59]} 4. Nxd4 {[%clk 0:03:01]}  Nf6 {[%clk 0:03:00]} 5. Nc3 {[%clk 0:03:01]}  a6 {[%clk 0:03:01]} 6. f3 {[%clk 0:03:00]}  e5 {[%clk 0:03:00]} 7. Nb3 {[%clk 0:03:00]}  Be6 {[%clk 0:03:00]} 8. Be3 {[%clk 0:03:00]}  Be7 {[%clk 0:03:01]} 9. Qd2 {[%clk 0:03:00]}  O-O {[%clk 0:03:01]} 10. O-O-O {[%clk 0:03:01]}  Nbd7 {[%clk 0:03:01]} 11. g4 {[%clk 0:03:01]}  b5 {[%clk 0:03:02]} 12. g5 {[%clk 0:03:01]}  Nh5 {[%clk 0:03:02]} 13. Ne2 {[%clk 0:02:50]}  Nb6 {[%clk 0:02:40]} 14. Na5 {[%clk 0:02:41]}  Rc8 {[%clk 0:02:30]} 15. Kb1 {[%clk 0:02:40]}  Nc4 {[%clk 0:02:14]} 16. Nxc4 {[%clk 0:02:38]}  bxc4 {[%clk 0:02:15]} 17. Nc3 {[%clk 0:02:38]}  f5 {[%clk 0:02:08]} 18. exf5 {[%clk 0:02:25]}  Bxf5 {[%clk 0:02:02]} 19. Bxc4+ {[%clk 0:02:24]}  Kh8 {[%clk 0:02:00]} 20. Bxa6 {[%clk 0:02:20]}  Rb8 {[%clk 0:01:58]} 21. Bc4 {[%clk 0:02:18]}  Nf4 {[%clk 0:01:52]} 22. Bxf4 {[%clk 0:02:10]}  exf4 {[%clk 0:01:53]} 23. h4 {[%clk 0:02:10]}  Qb6 {[%clk 0:01:15]} 24. Bb3 {[%clk 0:02:09]}  Rfc8 {[%clk 0:01:14]} 25. Rhe1 {[%clk 0:01:53]}  Bf8 {[%clk 0:00:56]} 26. Qd5 {[%clk 0:01:52]} 1-0


[Site "https://www.chess.com"]

[Event "Titled Tuesday Blitz July 25 Late 2023"]
[White "Morefield, Jason"]
[Black "Pniaczek, Marek"]
[WhiteFideId "30920825"]
[BlackFideId "21800421"]
[WhiteElo "2775"]
[BlackElo "2459"]
[Result "0-1"]
[Round "2"]
[TimeControl "180+2"]
[Date "2023.07.25"]
[WhiteClock "0:01:24"]
[BlackClock "0:00:50"]
[Board "60"]

1. e4 {[%clk 0:03:00]}  e5 {[%clk 0:02:59]} 2. Nf3 {[%clk 0:03:01]}  Nc6 {[%clk 0:02:59]} 3. Bb5 {[%clk 0:03:02]}  a6 {[%clk 0:02:59]} 4. Ba4 {[%clk 0:03:02]}  Nf6 {[%clk 0:02:59]} 5. O-O {[%clk 0:03:02]}  b5 {[%clk 0:02:58]} 6. Bb3 {[%clk 0:03:02]}  Be7 {[%clk 0:02:59]} 7. a4 {[%clk 0:02:58]}  Na5 {[%clk 0:02:29]} 8. Ba2 {[%clk 0:02:52]}  O-O {[%clk 0:02:20]} 9. d3 {[%clk 0:02:49]}  d6 {[%clk 0:02:15]} 10. Bd2 {[%clk 0:02:44]}  c5 {[%clk 0:02:04]} 11. axb5 {[%clk 0:02:39]}  axb5 {[%clk 0:02:04]} 12. b4 {[%clk 0:02:29]}  cxb4 {[%clk 0:01:57]} 13. Bxb4 {[%clk 0:02:29]}  Bg4 {[%clk 0:01:52]} 14. Nbd2 {[%clk 0:02:21]}  Nc6 {[%clk 0:01:43]} 15. Bc3 {[%clk 0:02:19]}  d5 {[%clk 0:01:43]} 16. h3 {[%clk 0:02:13]}  Bxf3 {[%clk 0:01:34]} 17. Qxf3 {[%clk 0:02:10]}  dxe4 {[%clk 0:01:33]} 18. Nxe4 {[%clk 0:02:09]}  Nd4 {[%clk 0:01:29]} 19. Nxf6+ {[%clk 0:02:03]}  Bxf6 {[%clk 0:01:26]} 20. Qd1 {[%clk 0:02:03]}  e4 {[%clk 0:01:12]} 21. dxe4 {[%clk 0:01:52]}  Ne2+ {[%clk 0:01:05]} 22. Qxe2 {[%clk 0:01:51]}  Bxc3 {[%clk 0:01:06]} 23. Rad1 {[%clk 0:01:50]}  Qe7 {[%clk 0:01:01]} 24. Bb3 {[%clk 0:01:47]}  b4 {[%clk 0:01:01]} 25. Rd3 {[%clk 0:01:40]}  Rfd8 {[%clk 0:01:01]} 26. Rfd1 {[%clk 0:01:38]}  g6 {[%clk 0:00:56]} 27. Rf3 {[%clk 0:01:23]}  Rxd1+ {[%clk 0:00:50]} 28. Qe1 {[%clk 0:01:24]} 0-1


[Site "https://www.chess.com"]

[Event "Titled Tuesday Blitz July 25 Late 2023"]
[White "Wu, Derek"]
[Black "Balla, Tamas-Kristof"]
[WhiteFideId "30914558"]
[BlackFideId "1208497"]
[WhiteElo "2772"]
[BlackElo "2451"]
[Result "1-0"]
[Round "2"]
[TimeControl "180+2"]
[Date "2023.07.25"]
[WhiteClock "0:00:55"]
[BlackClock "0:00:09"]
[Board "61"]

1. e4 {[%clk 0:03:00]}  c5 {[%clk 0:03:00]} 2. Nf3 {[%clk 0:03:01]}  Nc6 {[%clk 0:03:01]} 3. Bb5 {[%clk 0:02:59]}  Nf6 {[%clk 0:03:01]} 4. Nc3 {[%clk 0:02:59]}  Nd4 {[%clk 0:03:00]} 5. Bc4 {[%clk 0:02:50]}  e6 {[%clk 0:02:56]} 6. O-O {[%clk 0:02:41]}  a6 {[%clk 0:02:55]} 7. e5 {[%clk 0:02:37]}  d5 {[%clk 0:02:41]} 8. exd6 {[%clk 0:02:29]}  Bxd6 {[%clk 0:02:31]} 9. a4 {[%clk 0:02:28]}  O-O {[%clk 0:02:29]} 10. d3 {[%clk 0:02:27]}  h6 {[%clk 0:02:25]} 11. Re1 {[%clk 0:02:25]}  Bd7 {[%clk 0:02:24]} 12. Ne4 {[%clk 0:02:11]}  Nxe4 {[%clk 0:02:16]} 13. dxe4 {[%clk 0:02:12]}  Bc6 {[%clk 0:02:07]} 14. c3 {[%clk 0:02:07]}  Nxf3+ {[%clk 0:02:07]} 15. Qxf3 {[%clk 0:02:07]}  Qh4 {[%clk 0:01:47]} 16. g3 {[%clk 0:01:58]}  Qe7 {[%clk 0:01:36]} 17. Qg4 {[%clk 0:01:54]}  Kh8 {[%clk 0:01:34]} 18. e5 {[%clk 0:01:52]}  Bc7 {[%clk 0:01:30]} 19. Qh5 {[%clk 0:01:41]}  Rad8 {[%clk 0:01:23]} 20. h4 {[%clk 0:01:26]}  b5 {[%clk 0:01:20]} 21. Bg5 {[%clk 0:01:18]}  f6 {[%clk 0:00:59]} 22. exf6 {[%clk 0:01:11]}  Rxf6 {[%clk 0:00:39]} 23. Rxe6 {[%clk 0:01:03]}  Qf7 {[%clk 0:00:09]} 24. Qxf7 {[%clk 0:00:55]}  Rxf7 {[%clk 0:00:09]} 25. Rxc6 {[%clk 0:00:55]}  bxc4 {[%clk 0:00:09]} 26. Bxd8 {[%clk 0:00:55]} 1-0


[Site "https://www.chess.com"]

[Event "Titled Tuesday Blitz July 25 Late 2023"]
[White "Pulpan, Jakub"]
[Black "Omariev, Maksim"]
[WhiteFideId "302759"]
[BlackFideId "4193423"]
[WhiteElo "2771"]
[BlackElo "2449"]
[Result "1-0"]
[Round "2"]
[TimeControl "180+2"]
[Date "2023.07.25"]
[WhiteClock "0:01:33"]
[BlackClock "0:00:00"]
[Board "62"]

1. Nf3 {[%clk 0:03:00]}  d5 {[%clk 0:02:59]} 2. b3 {[%clk 0:02:57]}  c5 {[%clk 0:02:58]} 3. e3 {[%clk 0:02:56]}  a6 {[%clk 0:02:58]} 4. Bb2 {[%clk 0:02:53]}  Nc6 {[%clk 0:02:58]} 5. Be2 {[%clk 0:02:53]}  Nf6 {[%clk 0:02:54]} 6. d4 {[%clk 0:02:53]}  Bf5 {[%clk 0:02:52]} 7. Nbd2 {[%clk 0:02:53]}  e6 {[%clk 0:02:52]} 8. O-O {[%clk 0:02:53]}  cxd4 {[%clk 0:02:46]} 9. Nxd4 {[%clk 0:02:54]}  Nxd4 {[%clk 0:02:46]} 10. Bxd4 {[%clk 0:02:53]}  Bd6 {[%clk 0:02:43]} 11. c4 {[%clk 0:02:52]}  O-O {[%clk 0:02:43]} 12. cxd5 {[%clk 0:02:52]}  exd5 {[%clk 0:01:59]} 13. Nf3 {[%clk 0:02:49]}  Be4 {[%clk 0:01:48]} 14. h3 {[%clk 0:02:47]}  Rc8 {[%clk 0:01:23]} 15. Rc1 {[%clk 0:02:43]}  Qe7 {[%clk 0:01:22]} 16. Qd2 {[%clk 0:02:40]}  Rfd8 {[%clk 0:01:13]} 17. Rxc8 {[%clk 0:02:40]}  Rxc8 {[%clk 0:01:13]} 18. Rc1 {[%clk 0:02:41]}  Re8 {[%clk 0:00:50]} 19. Bd3 {[%clk 0:02:24]}  Bb8 {[%clk 0:00:38]} 20. Qc3 {[%clk 0:02:05]}  Bxd3 {[%clk 0:00:24]} 21. Qxd3 {[%clk 0:02:03]}  Ne4 {[%clk 0:00:20]} 22. Bb2 {[%clk 0:01:43]}  Qe6 {[%clk 0:00:12]} 23. Qd4 {[%clk 0:01:41]}  f6 {[%clk 0:00:12]} 24. Qb4 {[%clk 0:01:38]}  b5 {[%clk 0:00:11]} 25. a4 {[%clk 0:01:36]}  bxa4 {[%clk 0:00:10]} 26. Qxa4 {[%clk 0:01:37]}  Rd8 {[%clk 0:00:04]} 27. Rc6 {[%clk 0:01:36]}  Qf5 {[%clk 0:00:02]} 28. Qxa6 {[%clk 0:01:34]}  Nxf2 {[%clk 0:00:02]} 29. Kxf2 {[%clk 0:01:34]}  Qd3 {[%clk 0:00:00]} 30. Qxd3 {[%clk 0:01:33]} 1-0


[Site "https://www.chess.com"]

[Event "Titled Tuesday Blitz July 25 Late 2023"]
[White "Necromon"]
[Black "Nenezic, Marko"]
[BlackFideId "912123"]
[WhiteElo "2448"]
[BlackElo "2771"]
[Result "0-1"]
[Round "2"]
[TimeControl "180+2"]
[Date "2023.07.25"]
[WhiteClock "0:00:16"]
[BlackClock "0:01:08"]
[Board "63"]

1. Nf3 {[%clk 0:03:00]}  d5 {[%clk 0:03:00]} 2. c4 {[%clk 0:03:00]}  d4 {[%clk 0:02:59]} 3. e3 {[%clk 0:02:59]}  c5 {[%clk 0:02:59]} 4. b4 {[%clk 0:02:58]}  Nf6 {[%clk 0:02:39]} 5. bxc5 {[%clk 0:02:51]}  Nc6 {[%clk 0:02:39]} 6. exd4 {[%clk 0:02:38]}  Nxd4 {[%clk 0:02:39]} 7. Bb2 {[%clk 0:02:38]}  e5 {[%clk 0:02:36]} 8. Nxe5 {[%clk 0:02:19]}  Bxc5 {[%clk 0:02:36]} 9. Qa4+ {[%clk 0:02:14]}  b5 {[%clk 0:02:29]} 10. cxb5 {[%clk 0:02:10]}  O-O {[%clk 0:02:29]} 11. Be2 {[%clk 0:02:05]}  Re8 {[%clk 0:02:19]} 12. f4 {[%clk 0:02:05]}  Nxe2 {[%clk 0:02:12]} 13. Kxe2 {[%clk 0:01:59]}  Bg4+ {[%clk 0:02:13]} 14. Kf1 {[%clk 0:02:00]}  Rxe5 {[%clk 0:02:13]} 15. d4 {[%clk 0:01:41]}  Re2 {[%clk 0:02:02]} 16. Qc4 {[%clk 0:01:06]}  Bd6 {[%clk 0:01:46]} 17. Bc3 {[%clk 0:01:02]}  Ne4 {[%clk 0:01:32]} 18. Be1 {[%clk 0:00:49]}  Qf6 {[%clk 0:01:27]} 19. g3 {[%clk 0:00:31]}  Bxf4 {[%clk 0:01:26]} 20. Qc6 {[%clk 0:00:16]}  Bd6+ {[%clk 0:01:08]} 0-1


[Site "https://www.chess.com"]

[Event "Titled Tuesday Blitz July 25 Late 2023"]
[White "Goncalves, Davi Sulzbacher"]
[Black "Bolourchifard, Farzad"]
[WhiteFideId "2154510"]
[BlackFideId "12510084"]
[WhiteElo "2437"]
[BlackElo "2764"]
[Result "0-1"]
[Round "2"]
[TimeControl "180+2"]
[Date "2023.07.25"]
[WhiteClock "0:00:00"]
[BlackClock "0:00:21"]
[Board "65"]

1. Nf3 {[%clk 0:03:00]}  d5 {[%clk 0:02:59]} 2. d4 {[%clk 0:03:00]}  Nf6 {[%clk 0:03:00]} 3. c4 {[%clk 0:03:00]}  e6 {[%clk 0:03:00]} 4. Nc3 {[%clk 0:03:00]}  Be7 {[%clk 0:02:58]} 5. Bg5 {[%clk 0:03:00]}  h6 {[%clk 0:02:58]} 6. Bh4 {[%clk 0:02:59]}  O-O {[%clk 0:02:58]} 7. e3 {[%clk 0:03:00]}  Nbd7 {[%clk 0:02:58]} 8. Rc1 {[%clk 0:02:58]}  c6 {[%clk 0:02:59]} 9. Qc2 {[%clk 0:02:57]}  a6 {[%clk 0:03:00]} 10. c5 {[%clk 0:02:56]}  Nh5 {[%clk 0:02:55]} 11. Bg3 {[%clk 0:02:48]}  f5 {[%clk 0:02:30]} 12. Be5 {[%clk 0:02:39]}  Nhf6 {[%clk 0:02:25]} 13. Bd3 {[%clk 0:02:36]}  Ne4 {[%clk 0:02:26]} 14. g4 {[%clk 0:02:08]}  fxg4 {[%clk 0:02:10]} 15. Bxe4 {[%clk 0:02:07]}  gxf3 {[%clk 0:01:57]} 16. Bh7+ {[%clk 0:02:06]}  Kh8 {[%clk 0:01:58]} 17. Bxg7+ {[%clk 0:02:06]}  Kxg7 {[%clk 0:01:57]} 18. Qg6+ {[%clk 0:01:35]}  Kh8 {[%clk 0:01:57]} 19. Qxh6 {[%clk 0:01:34]}  Bg5 {[%clk 0:01:52]} 20. Qh5 {[%clk 0:01:34]}  Nf6 {[%clk 0:01:51]} 21. Qxg5 {[%clk 0:01:34]}  Nxh7 {[%clk 0:01:51]} 22. Qg3 {[%clk 0:01:23]}  e5 {[%clk 0:01:25]} 23. Rg1 {[%clk 0:01:06]}  Qe7 {[%clk 0:01:12]} 24. dxe5 {[%clk 0:00:54]}  Be6 {[%clk 0:01:12]} 25. Kd2 {[%clk 0:00:50]}  Rf5 {[%clk 0:01:07]} 26. h4 {[%clk 0:00:18]}  Rg8 {[%clk 0:01:06]} 27. Qh2 {[%clk 0:00:19]}  Qxc5 {[%clk 0:00:52]} 28. Rxg8+ {[%clk 0:00:18]}  Bxg8 {[%clk 0:00:53]} 29. Rg1 {[%clk 0:00:17]}  Qe7 {[%clk 0:00:35]} 30. Qg3 {[%clk 0:00:16]}  Be6 {[%clk 0:00:35]} 31. e4 {[%clk 0:00:14]}  Rf8 {[%clk 0:00:32]} 32. exd5 {[%clk 0:00:08]}  cxd5 {[%clk 0:00:30]} 33. Re1 {[%clk 0:00:05]}  d4 {[%clk 0:00:28]} 34. Ne4 {[%clk 0:00:05]}  Qb4+ {[%clk 0:00:28]} 35. Kd1 {[%clk 0:00:05]}  Qa4+ {[%clk 0:00:22]} 36. Kd2 {[%clk 0:00:02]}  Qxa2 {[%clk 0:00:22]} 37. Nf6 {[%clk 0:00:00]}  Qxb2+ {[%clk 0:00:21]} 0-1


[Site "https://www.chess.com"]

[Event "Titled Tuesday Blitz July 25 Late 2023"]
[White "Dias, Paulo"]
[Black "Mahdavi, Reza"]
[WhiteFideId "1900803"]
[BlackFideId "12595926"]
[WhiteElo "2425"]
[BlackElo "2762"]
[Result "0-1"]
[Round "2"]
[TimeControl "180+2"]
[Date "2023.07.25"]
[WhiteClock "0:00:20"]
[BlackClock "0:00:08"]
[Board "66"]

1. Nf3 {[%clk 0:03:00]}  Nf6 {[%clk 0:02:55]} 2. b3 {[%clk 0:02:58]}  g6 {[%clk 0:02:54]} 3. Bb2 {[%clk 0:02:58]}  Bg7 {[%clk 0:02:55]} 4. g3 {[%clk 0:02:58]}  d6 {[%clk 0:02:54]} 5. Bg2 {[%clk 0:02:58]}  e5 {[%clk 0:02:54]} 6. O-O {[%clk 0:02:59]}  O-O {[%clk 0:02:54]} 7. c4 {[%clk 0:02:59]}  Nc6 {[%clk 0:02:53]} 8. Nc3 {[%clk 0:02:59]}  h6 {[%clk 0:02:53]} 9. d4 {[%clk 0:02:57]}  exd4 {[%clk 0:02:53]} 10. Nxd4 {[%clk 0:02:57]}  Bd7 {[%clk 0:02:54]} 11. e3 {[%clk 0:02:55]}  Re8 {[%clk 0:02:53]} 12. Nd5 {[%clk 0:02:49]}  Ne5 {[%clk 0:02:40]} 13. h3 {[%clk 0:02:44]}  Nxd5 {[%clk 0:02:39]} 14. cxd5 {[%clk 0:02:39]}  f5 {[%clk 0:02:37]} 15. Rc1 {[%clk 0:02:37]}  Rc8 {[%clk 0:02:32]} 16. Rc2 {[%clk 0:02:22]}  Qe7 {[%clk 0:02:29]} 17. Qd2 {[%clk 0:02:18]}  c5 {[%clk 0:02:05]} 18. dxc6 {[%clk 0:02:14]}  bxc6 {[%clk 0:02:06]} 19. Rd1 {[%clk 0:02:08]}  Red8 {[%clk 0:01:56]} 20. f4 {[%clk 0:02:05]}  Nf7 {[%clk 0:01:53]} 21. Bxc6 {[%clk 0:02:00]}  Bxc6 {[%clk 0:00:56]} 22. Nxc6 {[%clk 0:01:39]}  Qe4 {[%clk 0:00:38]} 23. Bxg7 {[%clk 0:01:09]}  Rxc6 {[%clk 0:00:35]} 24. Rxc6 {[%clk 0:01:07]}  Qxc6 {[%clk 0:00:36]} 25. Rc1 {[%clk 0:01:05]}  Qf3 {[%clk 0:00:35]} 26. Bd4 {[%clk 0:00:59]}  Qxg3+ {[%clk 0:00:35]} 27. Qg2 {[%clk 0:00:58]}  Qxg2+ {[%clk 0:00:35]} 28. Kxg2 {[%clk 0:00:58]}  Rd7 {[%clk 0:00:35]} 29. Rc8+ {[%clk 0:00:57]}  Kh7 {[%clk 0:00:29]} 30. b4 {[%clk 0:00:57]}  g5 {[%clk 0:00:28]} 31. Kf3 {[%clk 0:00:55]}  Kg6 {[%clk 0:00:27]} 32. Rg8+ {[%clk 0:00:53]}  Kh5 {[%clk 0:00:24]} 33. b5 {[%clk 0:00:39]}  d5 {[%clk 0:00:18]} 34. Rg7 {[%clk 0:00:35]}  Kh4 {[%clk 0:00:11]} 35. a4 {[%clk 0:00:27]}  Kxh3 {[%clk 0:00:07]} 36. fxg5 {[%clk 0:00:27]}  Nxg5+ {[%clk 0:00:07]} 37. Kf4 {[%clk 0:00:20]}  Ne6+ {[%clk 0:00:08]} 0-1


[Site "https://www.chess.com"]